fUSD/lending_fUSD_20250111
["ID","MTS","AMOUNT","RATE_DAILY","PERIOD"]
[348551837,1736616671696,-500.0,0.00011094,2]
[348551838,1736616671706,-2327.18,0.00011094,2]
[348551839,1736616671716,-500.0,0.00011094,2]
[348551840,1736616671726,-151.0,0.00011095,2]
[348551841,1736616671735,-1018373.69594988,0.00011099,4]
[348551842,1736616671745,-111618.658953,0.00011099,2]
[348551843,1736616671755,-111618.65895297,0.00011099,2]
[348551844,1736616671764,-111618.65895297,0.00011099,2]
[348551845,1736616671774,-111618.65895297,0.00011099,2]
[348551846,1736616671785,-111618.65895297,0.00011099,2]
[348551847,1736616671795,-111618.65895297,0.00011099,2]
[348551848,1736616671805,-111618.65895297,0.00011099,2]
[348551849,1736616671815,-111618.65895297,0.00011099,2]
[348551850,1736616671824,-111618.65895297,0.00011099,2]
[348551851,1736616671834,-111618.65895297,0.00011099,2]
[348551852,1736616671845,-166496.81606041,0.00011099,2]
[348551853,1736616671855,-166496.81606035,0.00011099,2]
[348551854,1736616671866,-166496.81606035,0.00011099,2]
[348551855,1736616671875,-166496.81606035,0.00011099,2]
[348551856,1736616671885,-166496.81606035,0.00011099,2]
[348551857,1736616671895,-82643.64366702,0.00011099,2]
[348551858,1736616673096,-500.0,9.994e-05,2]
[348551859,1736616673110,-500.0,9.994e-05,2]
[348551860,1736616673120,-500.0,9.994e-05,2]
[348551861,1736616673129,-500.0,9.995e-05,2]
[348551862,1736616673138,-500.0,9.997e-05,2]
[348551863,1736616673147,-500.0,9.997e-05,2]
[348551864,1736616673156,-6679.71173817,0.0001,2]
[348551865,1736616673167,-500.0,0.00010268,2]
[348551866,1736616673177,-500.0,0.00010268,2]
[348551867,1736616673186,-500.0,0.00010268,2]
[348551868,1736616673196,-500.0,0.00010268,2]
[348551869,1736616673205,-500.0,0.00010271,2]
[348551870,1736616673215,-345.1217678,0.00010271,2]
[348551871,1736616673224,-500.0,0.00010542,2]
[348551872,1736616673234,-500.0,0.00010542,2]
[348551873,1736616673243,-500.0,0.00010545,2]
[348551874,1736616673253,-1931.1,0.00010546,2]
[348551875,1736616673263,-500.0,0.00010816,2]
[348551876,1736616673272,-1561.26849403,0.0001082,2]
[348551877,1736616673283,-369.83150597,0.0001082,2]
[348551878,1736616673293,-62.16849403,0.0001109,2]
[348551879,1736616673305,-236.10150597,0.0001109,2]
[348551880,1736616673314,-1931.1,0.00011094,2]
[348551881,1736616673323,-5645.27849403,0.00011099,2]
[348551882,1736616673334,-3583.4,0.00011099,2]
[348551883,1736616673355,-14678.25,0.00011099,2]
[348551884,1736616673386,-59946.2438993,0.00011099,2]
[348551885,1736616673395,-19483.18392117,0.00011099,2]
[348551886,1736616673406,-683.665,0.00011099,2]
[348551887,1736616673417,-146329.96713918,0.00011099,2]
[348551888,1736616673427,-166496.81606035,0.00011099,2]
[348551889,1736616673436,-78973.21680047,0.00011099,2]
[348551890,1736616673447,-87523.59925988,0.00011099,2]
[348551891,1736616673455,-166496.81606035,0.00011099,2]
[348551892,1736616673465,-925.48308599,0.00011141,2]
[348551893,1736616673474,-204.0,0.0001115,2]
[348551894,1736616673486,-429.82131162,0.00011193,2]
[348551895,1736616673495,-925.48308599,0.00011245,2]
[348551896,1736616673505,-429.82131162,0.00011317,2]
[348551897,1736616673514,-217.0,0.0001132,2]
[348551898,1736616673524,-204.0,0.0001132,2]
[348551899,1736616673533,-870.76378131,0.00011348,2]
[348551900,1736616674146,-500.0,9.994e-05,2]
[348551901,1736616674155,-500.0,9.994e-05,2]
[348551902,1736616674165,-500.0,9.994e-05,2]
[348551903,1736616674174,-150.798803,9.995e-05,2]
[348551904,1736616674184,-500.0,0.00010268,2]
[348551905,1736616674193,-500.65423575,0.00010268,2]
[348551906,1736616674203,-150.798803,0.00010269,2]
[348551907,1736616674213,-500.0,0.00010271,2]
[348551908,1736616674223,-500.0,0.00010542,2]
[348551909,1736616674233,-500.0,0.00010542,2]
[348551910,1736616674243,-150.798803,0.00010543,2]
[348551911,1736616674253,-500.0,0.00010545,2]
[348551912,1736616674264,-500.0,0.00010816,2]
[348551913,1736616674274,-500.0,0.00010816,2]
[348551914,1736616674285,-245.33997629,0.00010819,2]
[348551915,1736616674294,-231.0,0.00010929,2]
[348551916,1736616674304,-231.0,0.00010929,2]
[348551917,1736616674313,-231.0,0.00010929,2]
[348551918,1736616674323,-340.88,0.0001109,2]
[348551919,1736616674332,-500.0,0.0001109,2]
[348551920,1736616674341,-54.71930468,0.00011348,2]
[348551921,1736616674351,-1053.56,0.00011364,2]
[348551922,1736616674360,-500.0,0.00011364,2]
[348551923,1736616674370,-742.9,0.00011364,2]
[348551924,1736616674380,-2837.7,0.00011364,2]
[348551925,1736616674390,-4708.62,0.00011364,2]
[348551926,1736616674400,-2180.59,0.00011364,2]
[348551927,1736616674410,-500.0,0.00011364,2]
[348551928,1736616674419,-500.0,0.00011364,2]
[348551929,1736616674428,-1647.16,0.00011364,2]
[348551930,1736616674438,-3855.07,0.00011364,2]
[348551931,1736616674448,-2277.84,0.00011364,2]
[348551932,1736616674457,-500.0,0.00011364,2]
[348551933,1736616674467,-500.0,0.00011364,2]
[348551934,1736616674476,-500.0,0.00011364,2]
[348551935,1736616674486,-500.0,0.00011364,2]
[348551936,1736616674498,-500.0,0.00011364,2]
[348551937,1736616674509,-500.0,0.00011364,2]
[348551938,1736616674519,-1015.94,0.00011364,2]
[348551939,1736616674529,-741.68,0.00011364,2]
[348551940,1736616674539,-500.0,0.00011364,2]
[348551941,1736616674548,-500.0,0.00011364,2]
[348551942,1736616674559,-500.0,0.00011364,2]
[348551943,1736616674571,-500.0,0.00011364,2]
[348551944,1736616674582,-500.0,0.00011364,2]
[348551945,1736616674593,-66.9500744,0.00011364,2]
[348551946,1736616674641,-433.0499256,0.00011364,2]
[348551947,1736616674650,-500.0,0.00011365,2]
[348551948,1736616674660,-500.0,0.00011365,2]
[348551949,1736616674670,-500.0,0.00011365,2]
[348551950,1736616674680,-500.0,0.00011365,2]
[348551951,1736616674690,-677.95,0.00011365,2]
[348551952,1736616674699,-500.0,0.00011365,2]
[348551953,1736616674709,-500.0,0.00011365,2]
[348551954,1736616674719,-500.0,0.00011365,2]
[348551955,1736616674730,-500.0,0.00011365,2]
[348551956,1736616674740,-500.0,0.00011365,2]
[348551957,1736616674750,-500.0,0.00011365,2]
[348551958,1736616674759,-500.0,0.00011365,2]
[348551959,1736616674769,-151.0,0.00011365,2]
[348551960,1736616674778,-151.0,0.00011365,2]
[348551961,1736616674787,-500.0,0.00011365,2]
[348551962,1736616674797,-500.0,0.00011365,2]
[348551963,1736616674806,-500.0,0.00011365,2]
[348551964,1736616674816,-500.0,0.00011365,2]
[348551965,1736616674825,-500.0,0.00011365,2]
[348551966,1736616674835,-508.92,0.00011365,2]
[348551967,1736616674844,-500.0,0.00011365,2]
[348551968,1736616674853,-533.16,0.00011365,2]
[348551969,1736616674863,-500.0,0.00011365,2]
[348551970,1736616674872,-500.0,0.00011365,2]
[348551971,1736616674881,-500.0,0.00011365,2]
[348551972,1736616674890,-500.0,0.00011365,2]
[348551973,1736616674900,-500.0,0.00011365,2]
[348551974,1736616674910,-500.0,0.00011365,2]
[348551975,1736616674919,-500.0,0.00011365,2]
[348551976,1736616674928,-500.0,0.00011365,2]
[348551977,1736616674938,-500.0,0.00011365,2]
[348551978,1736616674947,-500.0,0.00011365,2]
[348551979,1736616674957,-500.0,0.00011365,2]
[348551980,1736616674966,-911.24,0.00011365,2]
[348551981,1736616674976,-500.0,0.00011365,2]
[348551982,1736616674985,-500.0,0.00011365,2]
[348551983,1736616674994,-500.0,0.00011365,2]
[348551984,1736616675003,-500.0,0.00011365,2]
[348551985,1736616675013,-500.0,0.00011365,2]
[348551986,1736616675175,-500.0,0.00011365,2]
[348551987,1736616675191,-512.36,0.00011365,2]
[348551988,1736616675201,-773.43,0.00011365,2]
[348551989,1736616675210,-500.0,0.00011365,2]
[348551990,1736616675219,-929.23,0.00011365,2]
[348551991,1736616675229,-500.0,0.00011365,2]
[348551992,1736616675239,-500.0,0.00011365,2]
[348551993,1736616675248,-500.0,0.00011365,2]
[348551994,1736616675257,-500.0,0.00011365,2]
[348551995,1736616675267,-2972.44,0.00011365,2]
[348551996,1736616675276,-500.0,0.00011365,2]
[348551997,1736616675286,-500.0,0.00011365,2]
[348551998,1736616675295,-1115.41,0.00011365,2]
[348551999,1736616675304,-500.0,0.00011365,2]
[348552000,1736616675314,-500.0,0.00011365,2]
[348552001,1736616675323,-500.0,0.00011365,2]
[348552002,1736616675332,-500.0,0.00011365,2]
[348552003,1736616675341,-500.0,0.00011365,2]
[348552004,1736616675351,-670.1600744,0.00011365,2]
[348552005,1736616675382,-552.73503,0.0001105,2]
[348552006,1736616675393,-369.855476,0.0001105,2]
[348552007,1736616675404,-363.69184163,0.0001105,2]
[348552008,1736616675432,-266.80271893,9.997e-05,2]
[348552009,1736616675444,-233.19728107,9.997e-05,2]
[348552010,1736616675453,-231.0,0.00010929,2]
[348552011,1736616675462,-2649.16825943,0.0001105,2]
[348552012,1736616675473,-380.3200001,0.0001105,2]
[348552013,1736616675485,-2363.941131,0.0001105,2]
[348552014,1736616675497,-150.798803,0.00011091,2]
[348552015,1736616675507,-106.4199256,0.00011365,2]
[348552016,1736616675516,-500.0,0.00011365,2]
[348552017,1736616675525,-500.0,0.00011365,2]
[348552018,1736616675534,-500.0,0.00011365,2]
[348552019,1736616675543,-500.0,0.00011365,2]
[348552020,1736616675553,-500.0,0.00011365,2]
[348552021,1736616675562,-500.0,0.00011365,2]
[348552022,1736616675571,-2674.48,0.00011365,2]
[348552023,1736616675580,-2.17502686,0.00011365,2]
[348552024,1736616675624,-497.82497314,0.00011365,2]
[348552025,1736616675634,-500.0,0.00011365,2]
[348552026,1736616675643,-100.17502686,0.00011365,2]
[348552027,1736616675655,-399.82497314,0.00011365,2]
[348552028,1736616675664,-500.0,0.00011365,2]
[348552029,1736616675674,-500.0,0.00011365,2]
[348552030,1736616675683,-1386.3,0.00011365,2]
[348552031,1736616675692,-500.0,0.00011365,2]
[348552032,1736616675701,-500.0,0.00011365,2]
[348552033,1736616675710,-500.0,0.00011365,2]
[348552034,1736616675719,-500.0,0.00011365,2]
[348552035,1736616675729,-500.0,0.00011365,2]
[348552036,1736616675738,-500.0,0.00011365,2]
[348552037,1736616675747,-1017.91,0.00011365,2]
[348552038,1736616675757,-500.0,0.00011365,2]
[348552039,1736616675766,-500.0,0.00011365,2]
[348552040,1736616675775,-749.762515,0.00011365,2]
[348552041,1736616675785,-813.35,0.00011365,2]
[348552042,1736616675794,-522.83,0.00011365,2]
[348552043,1736616675804,-2732.1,0.00011365,2]
[348552044,1736616675813,-500.0,0.00011365,2]
[348552045,1736616675822,-806.43964,0.00011365,2]
[348552046,1736616675831,-1082.26,0.00011365,2]
[348552047,1736616675840,-500.0,0.00011365,2]
[348552048,1736616675850,-929.53,0.00011365,2]
[348552049,1736616675859,-1884.77,0.00011365,2]
[348552050,1736616675869,-500.0,0.00011365,2]
[348552051,1736616675878,-500.0,0.00011365,2]
[348552052,1736616675887,-6414.96,0.00011365,2]
[348552053,1736616675896,-1868.18,0.00011365,2]
[348552054,1736616675906,-500.0,0.00011365,2]
[348552055,1736616675915,-500.0,0.00011365,2]
[348552056,1736616675924,-500.0,0.00011365,2]
[348552057,1736616675933,-500.55,0.00011365,2]
[348552058,1736616675943,-500.0,0.00011365,2]
[348552059,1736616675951,-500.0,0.00011365,2]
[348552060,1736616675960,-500.0,0.00011365,2]
[348552061,1736616675969,-500.0,0.00011365,2]
[348552062,1736616675978,-500.0,0.00011365,2]
[348552063,1736616675987,-841.4,0.00011365,2]
[348552064,1736616675996,-500.0,0.00011365,2]
[348552065,1736616676005,-3412.84,0.00011365,2]
[348552066,1736616676014,-500.0,0.00011365,2]
[348552067,1736616676023,-500.0,0.00011365,2]
[348552068,1736616676032,-500.0,0.00011365,2]
[348552069,1736616676041,-500.0,0.00011365,2]
[348552070,1736616676051,-500.0,0.00011365,2]
[348552071,1736616676061,-500.0,0.00011365,2]
[348552072,1736616676070,-500.0,0.00011365,2]
[348552073,1736616676079,-3869.11,0.00011365,2]
[348552074,1736616676088,-3874.7,0.00011365,2]
[348552075,1736616676098,-500.0,0.00011365,2]
[348552076,1736616676107,-2575.06,0.00011365,2]
[348552077,1736616676117,-500.0,0.00011365,2]
[348552078,1736616676126,-1183.72,0.00011365,2]
[348552079,1736616676136,-500.0,0.00011365,2]
[348552080,1736616676146,-500.0,0.00011365,2]
[348552081,1736616676156,-500.0,0.00011365,2]
[348552082,1736616676165,-500.0,0.00011365,2]
[348552083,1736616676174,-565.4,0.00011365,2]
[348552084,1736616676184,-500.0,0.00011365,2]
[348552085,1736616676193,-1148.56546533,0.00011365,2]
[348552086,1736616676205,-1305.24453467,0.00011365,2]
[348552087,1736616676214,-500.0,0.00011365,2]
[348552088,1736616676224,-456.24303773,0.00011365,2]
[348552089,1736616676236,-43.75696227,0.00011365,2]
[348552090,1736616676246,-2294.34303773,0.00011365,2]
[348552091,1736616676257,-319.87696227,0.00011365,2]
[348552092,1736616676267,-48.30303773,0.00011365,2]
[348552093,1736616676278,-451.69696227,0.00011365,2]
[348552094,1736616676288,-245.54303773,0.00011365,2]
[348552095,1736616683498,1830.0,5.281e-05,7]
[348552096,1736616699822,800.0,8.22e-05,2]
[348552097,1736616710606,500.0,8.22e-05,2]
[348552098,1736616734835,1142.88,8.219e-05,2]
[348552099,1736616884632,500.0,0.0002,120]
[348552100,1736616897045,2000.0,0.0002,120]
[348552102,1736617383445,2621.66451539,5.281e-05,7]
[348552109,1736617831844,-427.37,8.923e-05,2]
[348552110,1736617831853,-534.30907138,8.957e-05,2]
[348552111,1736617831902,-965.69092862,8.957e-05,2]
[348552112,1736617831912,-250.0,9.148e-05,2]
[348552113,1736617831923,-300.0,9.191e-05,2]
[348552114,1736617831932,-2791.72762948,9.192e-05,2]
[348552115,1736617831962,-459.56420233,9.192e-05,2]
[348552116,1736617831973,-1256.8,9.192e-05,2]
[348552117,1736617831985,-1090.52064337,9.192e-05,2]
[348552118,1736617832021,-9998.0,9.192e-05,2]
[348552120,1736617832312,-2084.4989146,9.192e-05,2]
[348552123,1736617832332,-6218.88861022,9.192e-05,2]
[348552125,1736617832342,-250.0,9.203e-05,2]
[348552126,1736617832352,-500.0,9.241e-05,2]
[348552127,1736617832361,-9120.0,9.352e-05,2]
[348552128,1736617832371,-1000.0,9.352e-05,2]
[348552129,1736617832380,-250.0,9.385e-05,2]
[348552130,1736617832389,-150.0,9.425e-05,2]
[348552131,1736617832399,-793.79,9.44e-05,2]
[348552132,1736617832408,-3554.68,9.589e-05,2]
[348552133,1736617832418,-800.0,9.59e-05,2]
[348552135,1736617832427,-500.0,9.664e-05,2]
[348552136,1736617832436,-2571.53,9.67e-05,2]
[348552137,1736617832446,-299.99,9.67e-05,2]
[348552138,1736617832455,-150.0,9.799e-05,2]
[348552139,1736617832464,-787.9168,9.8e-05,2]
[348552140,1736617832474,-5675.2641,9.8e-05,2]
[348552141,1736617832483,-300.0,9.8e-05,2]
[348552142,1736617832493,-2500.0,9.894e-05,2]
[348552143,1736617832502,-7787.6011,9.895e-05,2]
[348552144,1736617832511,-500.0,9.973e-05,2]
[348552145,1736617832524,-500.0,9.993e-05,2]
[348552146,1736617832534,-500.0,9.993e-05,2]
[348552147,1736617832543,-500.0,9.993e-05,2]
[348552148,1736617832552,-500.0,9.993e-05,2]
[348552149,1736617832561,-500.0,9.993e-05,2]
[348552150,1736617832570,-500.0,9.993e-05,2]
[348552151,1736617832579,-500.0,9.993e-05,2]
[348552152,1736617832588,-500.0,9.993e-05,2]
[348552153,1736617832598,-500.0,9.993e-05,2]
[348552154,1736617832607,-500.0,9.993e-05,2]
[348552155,1736617832616,-613.82,9.993e-05,2]
[348552156,1736617832626,-500.0,9.993e-05,2]
[348552157,1736617832635,-500.0,9.993e-05,2]
[348552158,1736617832645,-500.0,9.993e-05,2]
[348552159,1736617832654,-500.0,9.993e-05,2]
[348552160,1736617832663,-500.0,9.993e-05,2]
[348552161,1736617832673,-500.0,9.993e-05,2]
[348552162,1736617832683,-500.0,9.993e-05,2]
[348552163,1736617832692,-500.0,9.993e-05,2]
[348552164,1736617832701,-500.0,9.993e-05,2]
[348552165,1736617832710,-500.0,9.993e-05,2]
[348552166,1736617832719,-500.0,9.993e-05,2]
[348552167,1736617832729,-500.0,9.993e-05,2]
[348552168,1736617832738,-325.44750405,9.993e-05,2]
[348552169,1736617832747,-500.0,9.993e-05,2]
[348552170,1736617832757,-500.0,9.993e-05,2]
[348552171,1736617832766,-500.0,9.993e-05,2]
[348552172,1736617832775,-500.0,9.993e-05,2]
[348552173,1736617832784,-500.0,9.993e-05,2]
[348552174,1736617832794,-500.0,9.993e-05,2]
[348552175,1736617832804,-500.0,9.993e-05,2]
[348552176,1736617832813,-500.0,9.993e-05,2]
[348552177,1736617832823,-500.0,9.993e-05,2]
[348552178,1736617832832,-500.0,9.993e-05,2]
[348552179,1736617832842,-500.0,9.993e-05,2]
[348552180,1736617832851,-500.0,9.993e-05,2]
[348552181,1736617832860,-501.62666147,9.993e-05,2]
[348552182,1736617832870,-500.0,9.993e-05,2]
[348552183,1736617832879,-500.0,9.993e-05,2]
[348552184,1736617832889,-500.0,9.993e-05,2]
[348552185,1736617832899,-501.03292498,9.993e-05,2]
[348552186,1736617832908,-500.0,9.993e-05,2]
[348552187,1736617832918,-407.1587737,9.993e-05,2]
[348552188,1736617832930,-500.0,9.993e-05,2]
[348552189,1736617832939,-537.05,9.993e-05,2]
[348552190,1736617832949,-500.0,9.993e-05,2]
[348552191,1736617832958,-500.0,9.993e-05,2]
[348552192,1736617832967,-500.0,9.993e-05,2]
[348552193,1736617832977,-502.55654369,9.993e-05,2]
[348552194,1736617832987,-500.0,9.993e-05,2]
[348552195,1736617832996,-500.0,9.993e-05,2]
[348552196,1736617833006,-500.0,9.993e-05,2]
[348552197,1736617833016,-500.0,9.993e-05,2]
[348552198,1736617833025,-500.0,9.993e-05,2]
[348552199,1736617833036,-241.59382996,9.993e-05,2]
[348552200,1736617833048,-500.0,9.993e-05,2]
[348552201,1736617833058,-500.0,9.993e-05,2]
[348552202,1736617833067,-500.0,9.993e-05,2]
[348552203,1736617833076,-500.0,9.993e-05,2]
[348552204,1736617833087,-500.0,9.993e-05,2]
[348552205,1736617833096,-500.0,9.993e-05,2]
[348552206,1736617833106,-500.0,9.993e-05,2]
[348552207,1736617833115,-500.0,9.993e-05,2]
[348552208,1736617833126,-500.0,9.993e-05,2]
[348552209,1736617833135,-500.0,9.993e-05,2]
[348552210,1736617833145,-500.0,9.993e-05,2]
[348552211,1736617833155,-500.0,9.993e-05,2]
[348552212,1736617833164,-500.0,9.993e-05,2]
[348552213,1736617833174,-500.0,9.993e-05,2]
[348552214,1736617833184,-500.0,9.993e-05,2]
[348552215,1736617833193,-500.0,9.993e-05,2]
[348552216,1736617833203,-500.0,9.993e-05,2]
[348552217,1736617833213,-500.0,9.993e-05,2]
[348552218,1736617833222,-500.0,9.993e-05,2]
[348552219,1736617833232,-500.0,9.993e-05,2]
[348552220,1736617833242,-500.0,9.993e-05,2]
[348552221,1736617833251,-638.98820433,9.993e-05,2]
[348552222,1736617833261,-23.88697179,9.993e-05,2]
[348552223,1736617833275,-476.11302821,9.993e-05,2]
[348552224,1736617833285,-500.0,9.993e-05,2]
[348552225,1736617833294,-500.0,9.993e-05,2]
[348552226,1736617833304,-500.0,9.993e-05,2]
[348552227,1736617833314,-500.0,9.993e-05,2]
[348552228,1736617833324,-500.0,9.993e-05,2]
[348552229,1736617833333,-500.0,9.993e-05,2]
[348552230,1736617833343,-500.0,9.993e-05,2]
[348552231,1736617833351,-500.0,9.993e-05,2]
[348552232,1736617833361,-500.0,9.993e-05,2]
[348552233,1736617833370,-500.0,9.993e-05,2]
[348552234,1736617833380,-500.0,9.993e-05,2]
[348552235,1736617833389,-500.0,9.993e-05,2]
[348552236,1736617833399,-500.0,9.993e-05,2]
[348552237,1736617833409,-500.0,9.993e-05,2]
[348552238,1736617833420,-500.0,9.993e-05,2]
[348552239,1736617833430,-500.0,9.993e-05,2]
[348552240,1736617833440,-500.0,9.993e-05,2]
[348552241,1736617833449,-500.0,9.993e-05,2]
[348552242,1736617833459,-585.55,9.993e-05,2]
[348552243,1736617833469,-500.0,9.993e-05,2]
[348552244,1736617833479,-500.0,9.993e-05,2]
[348552245,1736617833488,-500.0,9.993e-05,2]
[348552246,1736617833498,-5.31276007,9.993e-05,2]
[348552247,1736617833510,-2509.72723993,9.993e-05,2]
[348552248,1736617833520,-500.0,9.993e-05,2]
[348552249,1736617833530,-500.0,9.993e-05,2]
[348552250,1736617833540,-500.0,9.993e-05,2]
[348552251,1736617833549,-500.0,9.993e-05,2]
[348552252,1736617833558,-500.0,9.993e-05,2]
[348552253,1736617833568,-500.0,9.993e-05,2]
[348552254,1736617833578,-500.0,9.993e-05,2]
[348552255,1736617833588,-500.0,9.993e-05,2]
[348552256,1736617833598,-1662.92,9.993e-05,2]
[348552257,1736617833607,-500.0,9.993e-05,2]
[348552258,1736617833616,-500.0,9.993e-05,2]
[348552259,1736617833626,-500.0,9.993e-05,2]
[348552260,1736617833636,-500.0,9.993e-05,2]
[348552261,1736617833645,-500.0,9.993e-05,2]
[348552262,1736617833654,-500.0,9.993e-05,2]
[348552263,1736617833663,-500.0,9.993e-05,2]
[348552264,1736617833674,-2486.48,9.993e-05,2]
[348552265,1736617833683,-500.0,9.993e-05,2]
[348552266,1736617833693,-500.0,9.993e-05,2]
[348552267,1736617833702,-500.0,9.993e-05,2]
[348552268,1736617833712,-500.0,9.993e-05,2]
[348552269,1736617833721,-500.0,9.993e-05,2]
[348552270,1736617833730,-500.0,9.993e-05,2]
[348552271,1736617833739,-6263.35,9.993e-05,2]
[348552272,1736617833749,-500.0,9.993e-05,2]
[348552273,1736617833759,-500.0,9.993e-05,2]
[348552274,1736617833768,-500.0,9.993e-05,2]
[348552275,1736617833778,-500.0,9.993e-05,2]
[348552276,1736617833787,-500.0,9.993e-05,2]
[348552277,1736617833796,-500.0,9.993e-05,2]
[348552278,1736617833806,-500.0,9.993e-05,2]
[348552279,1736617833816,-1729.18,9.993e-05,2]
[348552280,1736617833825,-500.0,9.993e-05,2]
[348552281,1736617833834,-500.0,9.993e-05,2]
[348552282,1736617833844,-500.0,9.993e-05,2]
[348552283,1736617833853,-500.0,9.993e-05,2]
[348552284,1736617833863,-707.85,9.993e-05,2]
[348552285,1736617833872,-500.0,9.993e-05,2]
[348552286,1736617833881,-500.0,9.993e-05,2]
[348552287,1736617833891,-500.0,9.993e-05,2]
[348552288,1736617833900,-500.0,9.993e-05,2]
[348552289,1736617833910,-500.0,9.993e-05,2]
[348552290,1736617833920,-500.0,9.993e-05,2]
[348552291,1736617833931,-500.0,9.993e-05,2]
[348552292,1736617833941,-500.0,9.993e-05,2]
[348552293,1736617833951,-500.0,9.993e-05,2]
[348552294,1736617833960,-1191.93,9.993e-05,2]
[348552295,1736617833970,-500.0,9.993e-05,2]
[348552296,1736617833980,-500.0,9.993e-05,2]
[348552297,1736617833990,-500.0,9.993e-05,2]
[348552298,1736617833999,-500.0,9.993e-05,2]
[348552299,1736617834009,-500.0,9.993e-05,2]
[348552300,1736617834018,-500.0,9.993e-05,2]
[348552301,1736617834027,-500.0,9.993e-05,2]
[348552302,1736617834038,-500.0,9.993e-05,2]
[348552303,1736617834051,-500.0,9.993e-05,2]
[348552304,1736617834061,-500.0,9.993e-05,2]
[348552305,1736617834070,-285.82171714,9.993e-05,2]
[348552306,1736617834080,-3145.91,9.993e-05,2]
[348552307,1736617834090,-3203.88,9.993e-05,2]
[348552308,1736617834100,-500.0,9.993e-05,2]
[348552309,1736617834109,-500.0,9.993e-05,2]
[348552310,1736617834119,-500.0,9.993e-05,2]
[348552311,1736617834131,-500.0,9.993e-05,2]
[348552312,1736617834141,-580.36,9.993e-05,2]
[348552313,1736617834151,-500.0,9.993e-05,2]
[348552314,1736617834161,-500.0,9.993e-05,2]
[348552315,1736617834171,-500.0,9.993e-05,2]
[348552316,1736617834181,-2948.79,9.993e-05,2]
[348552317,1736617834191,-500.0,9.993e-05,2]
[348552318,1736617834201,-500.0,9.993e-05,2]
[348552319,1736617834211,-500.0,9.993e-05,2]
[348552320,1736617834221,-500.0,9.993e-05,2]
[348552321,1736617834231,-500.0,9.993e-05,2]
[348552322,1736617834241,-549.13786899,9.993e-05,2]
[348552323,1736617834251,-500.0,9.993e-05,2]
[348552324,1736617834261,-393.1391515,9.993e-05,2]
[348552325,1736617834274,-106.8608485,9.993e-05,2]
[348552326,1736617834283,-4365.76,9.993e-05,2]
[348552327,1736617834293,-500.0,9.993e-05,2]
[348552328,1736617834303,-500.0,9.993e-05,2]
[348552329,1736617834312,-500.0,9.993e-05,2]
[348552330,1736617834323,-500.0,9.993e-05,2]
[348552331,1736617834332,-500.0,9.993e-05,2]
[348552332,1736617834342,-500.0,9.993e-05,2]
[348552333,1736617834352,-500.0,9.993e-05,2]
[348552334,1736617834362,-500.0,9.993e-05,2]
[348552335,1736617834371,-1302.49,9.993e-05,2]
[348552336,1736617834381,-2463.42,9.993e-05,2]
[348552337,1736617834390,-1664.49,9.993e-05,2]
[348552338,1736617834400,-500.0,9.993e-05,2]
[348552339,1736617834409,-500.0,9.993e-05,2]
[348552340,1736617834420,-500.0,9.993e-05,2]
[348552341,1736617834431,-500.0,9.993e-05,2]
[348552342,1736617834442,-500.0,9.993e-05,2]
[348552343,1736617834457,-500.0,9.993e-05,2]
[348552344,1736617834467,-500.0,9.993e-05,2]
[348552345,1736617834477,-3892.88,9.993e-05,2]
[348552346,1736617834487,-558.7,9.993e-05,2]
[348552347,1736617834497,-500.0,9.993e-05,2]
[348552348,1736617834507,-500.0,9.993e-05,2]